fUSD/lending_fUSD_20250906
["ID","MTS","AMOUNT","RATE_DAILY","PERIOD"]
[383873197,1757149871124,-400.0,0.00054794,120]
[383873198,1757149871137,-400.0,0.00054794,120]
[383873199,1757149871147,-224.91732011,0.00054794,120]
[383873200,1757149871156,-400.0,0.00054794,120]
[383873201,1757149871165,-673.96,0.00054794,14]
[383873202,1757149871175,-400.0,0.00054794,120]
[383873203,1757149871185,-400.0,0.00054794,120]
[383873204,1757149871195,-400.0,0.00054794,120]
[383873205,1757149871206,-628.09,0.00054794,120]
[383873206,1757149871216,-400.0,0.00054794,120]
[383873207,1757149871226,-400.0,0.00054794,5]
[383873208,1757149871235,-1491.13,0.00054794,120]
[383873209,1757149871245,-400.0,0.00054794,120]
[383873210,1757149871254,-400.0,0.00054794,120]
[383873211,1757149871263,-400.0,0.00054794,120]
[383873212,1757149871273,-464.99,0.00054794,120]
[383873213,1757149871282,-400.0,0.00054794,120]
[383873214,1757149871292,-224.65677456,0.00054794,120]
[383873215,1757149871301,-400.0,0.00054794,120]
[383873216,1757149871311,-400.0,0.00054794,120]
[383873217,1757149871320,-400.0,0.00054794,120]
[383873218,1757149871329,-400.0,0.00054794,120]
[383873219,1757149871339,-400.0,0.00054794,120]
[383873220,1757149871348,-400.0,0.00054794,120]
[383873221,1757149871358,-400.0,0.00054794,120]
[383873222,1757149871368,-400.0,0.00054794,120]
[383873223,1757149871378,-400.0,0.00054794,120]
[383873224,1757149871388,-400.0,0.00054794,120]
[383873225,1757149871398,-400.0,0.00054794,120]
[383873226,1757149871409,-400.0,0.00054794,120]
[383873227,1757149871419,-400.0,0.00054794,120]
[383873228,1757149871429,-400.0,0.00054794,120]
[383873229,1757149871439,-401.35137652,0.00054794,120]
[383873230,1757149871448,-402.00206482,0.00054794,120]
[383873231,1757149871459,-400.0,0.00054794,120]
[383873232,1757149871468,-400.0,0.00054794,120]
[383873233,1757149871478,-400.0,0.00054794,120]
[383873234,1757149871488,-400.0,0.00054794,120]
[383873235,1757149871498,-400.0,0.00054794,120]
[383873236,1757149871508,-400.0,0.00054794,120]
[383873237,1757149871518,-400.0,0.00054794,120]
[383873238,1757149871528,-400.0,0.00054794,120]
[383873239,1757149871538,-400.0,0.00054794,120]
[383873240,1757149871547,-278.95207059,0.00054794,120]
[383873241,1757149871556,-450.58,0.00054794,120]
[383873242,1757149871566,-400.0,0.00054794,120]
[383873243,1757149871576,-400.0,0.00054794,120]
[383873244,1757149871585,-400.0,0.00054794,120]
[383873245,1757149871595,-400.0,0.00054794,120]
[383873246,1757149871605,-400.0,0.00054794,120]
[383873247,1757149871614,-401.76111576,0.00054794,120]
[383873248,1757149871624,-400.0,0.00054794,2]
[383873249,1757149871633,-400.0,0.00054794,120]
[383873250,1757149871643,-400.0,0.00054794,120]
[383873251,1757149871652,-403.38459206,0.00054794,120]
[383873252,1757149871661,-400.0,0.00054794,120]
[383873253,1757149871671,-400.0,0.00054794,120]
[383873254,1757149871680,-400.0,0.00054794,120]
[383873255,1757149871689,-4000.0,0.00054795,30]
[383873256,1757149871699,-300.0,0.00054862,30]
[383873257,1757149871708,-500.0,0.00054863,120]
[383873258,1757149871717,-500.0,0.00054863,120]
[383873259,1757149871727,-500.0,0.00054889,60]
[383873260,1757149871736,-300.0,0.00054899,30]
[383873261,1757149871745,-800.0,0.000549,20]
[383873262,1757149871754,-150.0,0.00054999,120]
[383873263,1757149871764,-254.27796737,0.00055,18]
[383873264,1757149871773,-30176.47651622,0.00055,120]
[383873265,1757149871782,-83590.0,0.00055,15]
[383873266,1757149871792,-541.52172566,0.00055,120]
[383873267,1757149871801,-54271.94916826,0.00055,120]
[383873268,1757149872344,-655764.55698948,0.00055,120]
[383873269,1757149872354,-213.06998276,0.00055,120]
[383873270,1757149872363,-500.0,0.00055,30]
[383873271,1757149872372,-446.53408096,0.00055,120]
[383873272,1757149872381,-1036.80335101,0.00055,120]
[383873273,1757149872391,-2005.88,0.00055,120]
[383873274,1757149872400,-219.373275,0.00055,120]
[383873275,1757149872417,-151.0,0.00055,120]
[383873276,1757149872427,-10000.0,0.00055,120]
[383873277,1757149872436,-151.0,0.00055,120]
[383873278,1757149872446,-151.0,0.00055,120]
[383873279,1757149872455,-151.0,0.00055,120]
[383873280,1757149872464,-151.0,0.00055,120]
[383873281,1757149872474,-154.17726,0.00055,120]
[383873282,1757149872483,-151.0,0.00055,120]
[383873283,1757149872493,-151.0,0.00055,120]
[383873284,1757149872502,-151.0,0.00055,120]
[383873285,1757149872511,-165.153119,0.00055,120]
[383873286,1757149872520,-151.0,0.00055,120]
[383873287,1757149872529,-151.0,0.00055,120]
[383873288,1757149872539,-151.0,0.00055,120]
[383873289,1757149872548,-151.0,0.00055,120]
[383873290,1757149872557,-151.0,0.00055,120]
[383873291,1757149872567,-151.0,0.00055,120]
[383873292,1757149872576,-151.0,0.00055,120]
[383873293,1757149872586,-151.0,0.00055,120]
[383873294,1757149872596,-151.0,0.00055,120]
[383873295,1757149872605,-151.0,0.00055,120]
[383873296,1757149872615,-151.0,0.00055,120]
[383873297,1757149872624,-151.0,0.00055,120]
[383873298,1757149872635,-151.0,0.00055,120]
[383873299,1757149872645,-151.0,0.00055,120]
[383873300,1757149872656,-202.9368,0.00055,120]
[383873301,1757149872665,-151.0,0.00055,120]
[383873302,1757149872675,-170.97795,0.00055,120]
[383873303,1757149872685,-151.0,0.00055,120]
[383873304,1757149872694,-170.97795,0.00055,120]
[383873305,1757149872704,-151.0,0.00055,120]
[383873306,1757149872713,-170.97795,0.00055,120]
[383873307,1757149872722,-170.97795,0.00055,120]
[383873308,1757149872732,-151.0,0.00055,120]
[383873309,1757149872741,-151.0,0.00055,120]
[383873310,1757149872751,-151.0,0.00055,120]
[383873311,1757149872761,-151.0,0.00055,120]
[383873312,1757149872770,-154.978487,0.00055,120]
[383873313,1757149872779,-151.0,0.00055,120]
[383873314,1757149872789,-193.943864,0.00055,120]
[383873315,1757149872799,-151.0,0.00055,120]
[383873316,1757149873047,-151.0,0.00055,120]
[383873317,1757149873058,-192.26024,0.00055,120]
[383873318,1757149873068,-192.26024,0.00055,120]
[383873319,1757149873077,-192.26024,0.00055,120]
[383873320,1757149873087,-192.26024,0.00055,120]
[383873321,1757149873097,-151.0,0.00055,120]
[383873322,1757149873106,-151.0,0.00055,120]
[383873323,1757149873116,-151.0,0.00055,120]
[383873324,1757149873126,-151.0,0.00055,120]
[383873325,1757149873141,-151.0,0.00055,120]
[383873326,1757149873151,-151.0,0.00055,120]
[383873327,1757149873161,-151.0,0.00055,120]
[383873328,1757149873173,-151.0,0.00055,120]
[383873329,1757149873182,-151.0,0.00055,120]
[383873330,1757149873192,-151.0,0.00055,2]
[383873331,1757149873202,-151.0,0.00055,120]
[383873332,1757149873212,-157.829915,0.00055,2]
[383873333,1757149873224,-151.0,0.00055,120]
[383873334,1757149873234,-232.476356,0.00055,120]
[383873335,1757149873243,-151.0,0.00055,120]
[383873336,1757149873252,-151.0,0.00055,120]
[383873337,1757149873262,-212.888447,0.00055,120]
[383873338,1757149873271,-151.0,0.00055,120]
[383873339,1757149873281,-151.0,0.00055,60]
[383873340,1757149873291,-151.0,0.00055,120]
[383873341,1757149873301,-151.0,0.00055,120]
[383873342,1757149873311,-151.0,0.00055,120]
[383873343,1757149873320,-151.0,0.00055,120]
[383873344,1757149873330,-151.0,0.00055,120]
[383873345,1757149873339,-151.0,0.00055,120]
[383873346,1757149873349,-151.0,0.00055,120]
[383873347,1757149873358,-151.0,0.00055,120]
[383873348,1757149873367,-151.0,0.00055,120]
[383873349,1757149873377,-151.0,0.00055,120]
[383873350,1757149873387,-700.503592,0.00055,120]
[383873351,1757149873396,-151.0,0.00055,120]
[383873352,1757149873406,-158.429723,0.00055,120]
[383873353,1757149873416,-700.503592,0.00055,120]
[383873354,1757149873426,-151.0,0.00055,120]
[383873355,1757149873436,-151.0,0.00055,120]
[383873356,1757149873445,-700.503592,0.00055,120]
[383873357,1757149873455,-151.0,0.00055,120]
[383873358,1757149873466,-700.503592,0.00055,120]
[383873359,1757149873477,-258.237912,0.00055,120]
[383873360,1757149873489,-151.0,0.00055,120]
[383873361,1757149873501,-151.0,0.00055,120]
[383873362,1757149873510,-151.0,0.00055,120]
[383873363,1757149873521,-151.0,0.00055,120]
[383873364,1757149873530,-151.0,0.00055,120]
[383873365,1757149873539,-151.0,0.00055,120]
[383873366,1757149873551,-333.219907,0.00055,120]
[383873367,1757149873567,-333.219907,0.00055,120]
[383873368,1757149873576,-333.219907,0.00055,120]
[383873369,1757149873585,-238.236622,0.00055,120]
[383873370,1757149873596,-333.219907,0.00055,120]
[383873371,1757149873606,-238.236622,0.00055,120]
[383873372,1757149873618,-238.236622,0.00055,120]
[383873373,1757149873632,-238.236622,0.00055,120]
[383873374,1757149873643,-151.0,0.00055,120]
[383873375,1757149873656,-205.643086,0.00055,120]
[383873376,1757149873666,-194.598617,0.00055,120]
[383873377,1757149873676,-151.0,0.00055,120]
[383873378,1757149873686,-151.0,0.00055,120]
[383873379,1757149873695,-194.598617,0.00055,120]
[383873380,1757149873705,-151.0,0.00055,120]
[383873381,1757149873715,-194.598617,0.00055,120]
[383873382,1757149873725,-151.0,0.00055,120]
[383873383,1757149873736,-151.0,0.00055,120]
[383873384,1757149873746,-194.598617,0.00055,120]
[383873385,1757149873756,-151.0,0.00055,120]
[383873386,1757149873766,-151.0,0.00055,120]
[383873387,1757149873776,-151.0,0.00055,120]
[383873388,1757149873787,-195.244072,0.00055,120]
[383873389,1757149873798,-659.946177,0.00055,120]
[383873390,1757149873808,-659.946177,0.00055,120]
[383873391,1757149873818,-659.946177,0.00055,120]
[383873392,1757149873827,-659.946177,0.00055,120]
[383873393,1757149873837,-151.0,0.00055,120]
[383873394,1757149873847,-153.598815,0.00055,120]
[383873395,1757149873857,-417.483372,0.00055,120]
[383873396,1757149873866,-262.482971,0.00055,120]
[383873397,1757149873876,-417.483372,0.00055,120]
[383873398,1757149873886,-262.482971,0.00055,120]
[383873399,1757149873896,-417.483372,0.00055,120]
[383873400,1757149873906,-262.482971,0.00055,120]
[383873401,1757149873914,-151.0,0.00055,120]
[383873402,1757149873924,-417.483372,0.00055,120]
[383873403,1757149873934,-262.482971,0.00055,120]
[383873404,1757149873946,-151.0,0.00055,120]
[383873405,1757149873956,-213.434917,0.00055,120]
[383873406,1757149873967,-151.0,0.00055,120]
[383873407,1757149873977,-151.0,0.00055,120]
[383873408,1757149873989,-152.939587,0.00055,120]
[383873409,1757149873998,-247.0815,0.00055,120]
[383873410,1757149874008,-247.0815,0.00055,120]
[383873411,1757149874017,-247.0815,0.00055,120]
[383873412,1757149874027,-338.883,0.00055,120]
[383873413,1757149874037,-247.0815,0.00055,120]
[383873414,1757149874047,-151.0,0.00055,120]
[383873415,1757149874056,-151.0,0.00055,120]
[383873416,1757149874067,-338.883,0.00055,120]
[383873417,1757149874079,-151.0,0.00055,120]
[383873418,1757149874088,-151.0,0.00055,120]
[383873419,1757149874099,-747.978665,0.00055,120]
[383873420,1757149874108,-338.883,0.00055,120]
[383873421,1757149874118,-173.482653,0.00055,120]
[383873422,1757149874130,-196.628952,0.00055,120]
[383873423,1757149874144,-151.0,0.00055,120]
[383873424,1757149874155,-747.978665,0.00055,120]
[383873425,1757149874166,-196.628952,0.00055,120]
[383873426,1757149874176,-173.482653,0.00055,120]
[383873427,1757149874186,-338.883,0.00055,120]
[383873428,1757149874196,-747.978665,0.00055,120]
[383873429,1757149874206,-196.628952,0.00055,120]
[383873430,1757149874215,-173.482653,0.00055,120]
[383873431,1757149874225,-151.0,0.00055,10]
[383873432,1757149874235,-196.628952,0.00055,120]
[383873433,1757149874245,-747.978665,0.00055,120]
[383873434,1757149874257,-173.482653,0.00055,120]
[383873435,1757149874271,-154.466493,0.00055,10]
[383873436,1757149874281,-339.481056,0.00055,120]
[383873437,1757149874291,-210.656511,0.00055,120]
[383873438,1757149874303,-210.656511,0.00055,120]
[383873439,1757149874314,-339.481056,0.00055,120]
[383873440,1757149874324,-210.656511,0.00055,120]
[383873441,1757149874336,-339.481056,0.00055,120]
[383873442,1757149874346,-151.0,0.00055,120]
[383873443,1757149874358,-339.481056,0.00055,120]
[383873444,1757149874368,-210.656511,0.00055,120]
[383873445,1757149874379,-151.0,0.00055,120]
[383873446,1757149874391,-644.322575,0.00055,120]
[383873447,1757149874403,-151.0,0.00055,120]
[383873448,1757149874414,-151.0,0.00055,120]
[383873449,1757149874426,-644.322575,0.00055,120]
[383873450,1757149874436,-151.0,0.00055,120]
[383873451,1757149874449,-151.0,0.00055,120]
[383873452,1757149874460,-644.322575,0.00055,120]
[383873453,1757149874471,-151.0,0.00055,120]
[383873454,1757149874483,-644.322575,0.00055,120]
[383873455,1757149874494,-346.418084,0.00055,120]
[383873456,1757149874504,-151.0,0.00055,120]
[383873457,1757149874515,-346.418084,0.00055,120]
[383873458,1757149874525,-201.482259,0.00055,120]
[383873459,1757149874535,-331.983944,0.00055,120]
[383873460,1757149874544,-346.418084,0.00055,120]
[383873461,1757149874555,-151.0,0.00055,120]
[383873462,1757149874565,-172.287321,0.00055,120]
[383873463,1757149874576,-201.482259,0.00055,120]
[383873464,1757149874586,-331.983944,0.00055,120]
[383873465,1757149874596,-346.418084,0.00055,120]
[383873466,1757149874606,-172.287321,0.00055,120]
[383873467,1757149874616,-201.482259,0.00055,120]
[383873468,1757149874626,-331.983944,0.00055,120]
[383873469,1757149874636,-172.287321,0.00055,120]
[383873470,1757149874646,-201.482259,0.00055,120]
[383873471,1757149874656,-331.983944,0.00055,120]
[383873472,1757149874667,-172.287321,0.00055,120]
[383873473,1757149874678,-151.0,0.00055,10]
[383873474,1757149874688,-151.0,0.00055,120]
[383873475,1757149874698,-189.779097,0.00055,120]
[383873476,1757149874708,-151.0,0.00055,120]
[383873477,1757149874718,-812.172578,0.00055,120]
[383873478,1757149874727,-151.0,0.00055,120]
[383873479,1757149874738,-812.172578,0.00055,120]
[383873480,1757149874748,-210.729434,0.00055,120]
[383873481,1757149874758,-812.172578,0.00055,120]
[383873482,1757149874768,-812.172578,0.00055,120]
[383873483,1757149874779,-223.99356,0.00055,120]
[383873484,1757149874788,-153.255323,0.00055,120]
[383873485,1757149874798,-223.99356,0.00055,120]
[383873486,1757149874808,-151.0,0.00055,2]
[383873487,1757149874818,-151.0,0.00055,2]
[383873488,1757149874828,-223.99356,0.00055,120]
[383873489,1757149874838,-223.99356,0.00055,120]
[383873490,1757149874848,-790.624522,0.00055,120]
[383873491,1757149874858,-790.624522,0.00055,120]
[383873492,1757149874868,-151.0,0.00055,120]
[383873493,1757149874878,-581.198494,0.00055,120]
[383873494,1757149874887,-151.0,0.00055,120]
[383873495,1757149874898,-790.624522,0.00055,120]
[383873496,1757149874908,-581.198494,0.00055,120]
[383873497,1757149874922,-152.875637,0.00055,120]
[383873498,1757149874932,-790.624522,0.00055,120]
[383873499,1757149874942,-581.198494,0.00055,120]
[383873500,1757149874952,-151.0,0.00055,120]
[383873501,1757149874962,-581.198494,0.00055,120]
[383873502,1757149874973,-151.0,0.00055,120]
[383873503,1757149874982,-151.0,0.00055,120]
[383873504,1757149874992,-151.0,0.00055,120]
[383873505,1757149875009,-151.0,0.00055,120]
[383873506,1757149875018,-151.86608,0.00055,120]
[383873507,1757149875027,-151.0,0.00055,120]
[383873508,1757149875036,-151.86608,0.00055,120]
[383873509,1757149875047,-151.86608,0.00055,120]
[383873510,1757149875056,-151.0,0.00055,120]
[383873511,1757149875065,-151.86608,0.00055,120]
[383873512,1757149875075,-151.0,0.00055,120]
[383873513,1757149875084,-152.195532,0.00055,120]
[383873514,1757149875095,-151.0,0.00055,120]
[383873515,1757149875104,-238.379131,0.00055,120]
[383873516,1757149875114,-238.379131,0.00055,120]
[383873517,1757149875124,-238.379131,0.00055,120]
[383873518,1757149875136,-238.379131,0.00055,120]
[383873519,1757149875145,-702.786079,0.00055,120]
[383873520,1757149875155,-702.786079,0.00055,120]
[383873521,1757149875164,-702.786079,0.00055,120]
[383873522,1757149875174,-702.786079,0.00055,120]
[383873523,1757149875185,-151.0,0.00055,120]
[383873524,1757149875195,-151.0,0.00055,120]
[383873525,1757149875208,-669.998502,0.00055,120]
[383873526,1757149875217,-669.998502,0.00055,120]
[383873527,1757149875227,-669.998502,0.00055,120]
[383873528,1757149875237,-669.998502,0.00055,120]
[383873529,1757149875247,-358.152526,0.00055,120]
[383873530,1757149875256,-1748.103596,0.00055,120]
[383873531,1757149875266,-151.0,0.00055,120]
[383873532,1757149875276,-358.152526,0.00055,120]
[383873533,1757149875286,-2754.375304,0.00055,120]
[383873534,1757149875296,-1748.103596,0.00055,120]
[383873535,1757149875306,-358.152526,0.00055,120]
[383873536,1757149875316,-2754.375304,0.00055,120]
[383873537,1757149875325,-1748.103596,0.00055,120]
[383873538,1757149875335,-358.152526,0.00055,120]
[383873539,1757149875345,-2754.375304,0.00055,120]
[383873540,1757149875355,-1748.103596,0.00055,120]
[383873541,1757149875365,-2754.375304,0.00055,120]
[383873542,1757149875375,-151.0,0.00055,120]
[383873543,1757149875385,-2337.394473,0.00055,120]
[383873544,1757149875395,-151.0,0.00055,120]
[383873545,1757149875404,-2337.394473,0.00055,120]
[383873546,1757149875414,-151.596769,0.00055,120]
[383873547,1757149875424,-2337.394473,0.00055,120]
[383873548,1757149875434,-151.0,0.00055,120]
[383873549,1757149875443,-5131.000149,0.00055,30]
[383873550,1757149875452,-2337.394473,0.00055,120]
[383873551,1757149875462,-5131.000149,0.00055,30]
[383873552,1757149875471,-170.954605,0.00055,30]
[383873553,1757149875481,-558.060746,0.00055,120]
[383873554,1757149875490,-5131.000149,0.00055,30]
[383873555,1757149875500,-170.954605,0.00055,30]
[383873556,1757149875509,-558.060746,0.00055,120]
[383873557,1757149875519,-5131.000149,0.00055,30]
[383873558,1757149875529,-151.0,0.00055,60]
[383873559,1757149875539,-170.954605,0.00055,30]
[383873560,1757149875549,-151.0,0.00055,120]
[383873561,1757149875559,-558.060746,0.00055,120]
[383873562,1757149875568,-151.0,0.00055,60]
[383873563,1757149875578,-170.954605,0.00055,30]
[383873564,1757149875587,-151.0,0.00055,120]
[383873565,1757149875679,-558.060746,0.00055,120]
[383873566,1757149875688,-151.0,0.00055,60]
[383873567,1757149875696,-151.0,0.00055,120]
[383873568,1757149875705,-151.0,0.00055,60]
[383873569,1757149875714,-596.11126,0.00055,120]
[383873570,1757149875723,-596.11126,0.00055,120]
[383873571,1757149875732,-596.11126,0.00055,120]
[383873572,1757149875741,-596.11126,0.00055,120]
[383873573,1757149875750,-624.690439,0.00055,120]
[383873574,1757149875758,-624.690439,0.00055,120]
[383873575,1757149875767,-624.690439,0.00055,120]
[383873576,1757149875776,-624.690439,0.00055,120]
[383873577,1757149875786,-2151.042427,0.00055,120]
[383873578,1757149875796,-2151.042427,0.00055,120]
[383873579,1757149875806,-240.981312,0.00055,15]
[383873580,1757149875816,-2151.042427,0.00055,120]
[383873581,1757149875826,-2070.792925,0.00055,120]
[383873582,1757149875836,-240.981312,0.00055,15]
[383873583,1757149875845,-2151.042427,0.00055,120]
[383873584,1757149875855,-2070.792925,0.00055,120]
[383873585,1757149875865,-240.981312,0.00055,15]
[383873586,1757149875874,-2070.792925,0.00055,120]
[383873587,1757149875883,-240.981312,0.00055,15]
[383873588,1757149875892,-2070.792925,0.00055,120]
[383873589,1757149875902,-271.541194,0.00055,120]
[383873590,1757149875911,-271.541194,0.00055,120]
[383873591,1757149875920,-271.541194,0.00055,120]
[383873592,1757149875931,-271.541194,0.00055,120]
[383873593,1757149875941,-151.0,0.00055,120]
[383873594,1757149875951,-254.533976,0.00055,120]
[383873595,1757149875960,-254.533976,0.00055,120]
[383873596,1757149875970,-715.719907,0.00055,120]
[383873597,1757149875980,-254.533976,0.00055,120]
[383873598,1757149875990,-715.719907,0.00055,120]
[383873599,1757149875999,-254.533976,0.00055,120]
[383873600,1757149876009,-199.750129,0.00055,120]
[383873601,1757149876019,-715.719907,0.00055,120]
[383873602,1757149876029,-151.0,0.00055,120]
[383873603,1757149876038,-151.0,0.00055,120]
[383873604,1757149876047,-199.750129,0.00055,120]
[383873605,1757149876057,-715.719907,0.00055,120]
[383873606,1757149876066,-199.750129,0.00055,120]
[383873607,1757149876076,-199.750129,0.00055,120]
[383873608,1757149876086,-152.208181,0.00055,120]
[383873609,1757149876095,-152.208181,0.00055,120]
[383873610,1757149876104,-151.0,0.00055,120]
[383873611,1757149876114,-151.0,0.00055,60]
[383873612,1757149876123,-152.208181,0.00055,120]
[383873613,1757149876137,-151.0,0.00055,60]
[383873614,1757149876147,-152.208181,0.00055,120]
[383873615,1757149876156,-151.0,0.00055,120]
[383873616,1757149876165,-151.0,0.00055,60]
[383873617,1757149876175,-151.0,0.00055,30]
[383873618,1757149876184,-151.0,0.00055,120]
[383873619,1757149876194,-151.0,0.00055,30]
[383873620,1757149876204,-151.0,0.00055,120]
[383873621,1757149876214,-151.0,0.00055,120]
[383873622,1757149876224,-151.0,0.00055,120]
[383873623,1757149876234,-151.0,0.00055,120]
[383873624,1757149876244,-151.0,0.00055,120]
[383873625,1757149876255,-500.0,0.00055137,120]
[383873626,1757149876265,-500.0,0.00055137,120]
[383873627,1757149876274,-500.0,0.00055411,120]
[383873628,1757149876284,-500.0,0.00055411,120]
[383873629,1757149876293,-3000.0,0.000555,120]
[383873630,1757149876303,-500.0,0.00055526,120]
[383873631,1757149876313,-278.0,0.0005553,30]
[383873632,1757149876323,-5451.84361079,0.00055596,120]
[383873633,1757149877244,-574.67744904,0.00055596,120]
[383873634,1757149877254,-500.0,0.00055685,120]
[383873635,1757149877263,-500.0,0.00055685,120]
[383873636,1757149877275,-500.0,0.00055707,120]
[383873637,1757149877285,-150.0,0.00055925,120]
[383873638,1757149877295,-500.0,0.00055959,120]
[383873639,1757149877304,-500.0,0.00055959,120]
[383873640,1757149877313,-14160.11781045,0.00056,85]
[383873641,1757149877333,-23241.44596273,0.00056,85]
[383873642,1757149877625,-151.0,0.0005,120]
[383873643,1757149877636,-500.0,0.00054794,120]
[383873644,1757149877647,-400.0,0.00054794,120]
[383873645,1757149877656,-500.0,0.00054794,120]
[383873646,1757149877666,-400.0,0.00054794,120]
[383873647,1757149877677,-500.0,0.00054794,120]
[383873648,1757149877687,-500.0,0.00054794,120]
[383873649,1757149877697,-500.0,0.00054794,120]
[383873650,1757149877707,-255.47854039,0.00054794,120]
[383873651,1757149877716,-151.0,0.00055,120]
[383873652,1757149877726,-1823.01187178,0.00056,85]
[383873653,1757149877738,-818.06783151,0.00056,85]
[383873654,1757149877750,-9780.3211168,0.00056,85]
[383873655,1757149877762,-177.03540673,0.00056,85]
[383873656,1757149877772,-1586.30811518,0.00056,120]
[383873657,1757149878640,-151.0,0.0005,120]
[383873658,1757149878651,-151.0,0.0005,120]
[383873659,1757149878661,-570.52,0.00054794,120]
[383873660,1757149878671,-400.0,0.00054794,120]
[383873661,1757149878682,-400.0,0.00054794,120]
[383873662,1757149878692,-151.0,0.00055,120]
[383873663,1757149878703,-151.0,0.00055,120]
[383873664,1757149878713,-855.46455212,0.00056,120]
[383873665,1757149878725,-2757.89413162,0.00056,120]
[383873666,1757149878746,-640.155,0.00056,120]
[383873667,1757149878862,-925.17218764,0.00056,120]
[383873668,1757149879047,-3235.00601344,0.00056,120]
[383873669,1757149879058,-2461.25,0.00056,30]
[383873670,1757149879068,-1000.0,0.00056,7]
[383873671,1757149879079,-1531.0,0.00056,7]
[383873672,1757149879090,-1182.0,0.00056,7]
[383873673,1757149879101,-150.0,0.00056049,120]
[383873674,1757149879110,-459.6981384,0.00056086,120]
[383873675,1757149879271,-40.3018616,0.00056086,120]
[383873676,1757149879281,-66.56929791,0.00056158,2]
[383873677,1757149880006,151.0,0.00034412,2]
[383873678,1757149880055,-442.04,0.00054794,120]
[383873679,1757149880066,-400.0,0.00054794,120]
[383873680,1757149880078,-695.57,0.00054794,120]
[383873681,1757149880090,-304.34096847,0.00056158,2]
[383873682,1757149880101,-150.0,0.00056164,120]
[383873683,1757149880112,-461.37,0.000562,60]
[383873684,1757149880344,-149.0785886,0.00056233,120]
[383873685,1757149880390,-350.9214114,0.00056233,120]
[383873686,1757149880400,-661.07,0.00056233,120]
[383873687,1757149880410,-58.2285886,0.000565,120]
[383873688,1757149907119,156.46,0.00027786,2]
[383873689,1757149907361,156.46,0.00032417,2]
[383873690,1757149921143,500.0,0.0002412,2]
[383873696,1757150175962,10000.0,0.00038478,30]
[383873697,1757150204175,10023.0,0.00038478,30]
[383873724,1757150770638,5201.72504803,0.0003,120]
[383873725,1757150779429,-183.01231582,0.000198,2]
[383873726,1757150781189,-257.14328707,0.000198,2]
[383873727,1757150785819,-223.12123972,0.000198,2]